[Event "*** Titled Tuesday Blitz"]
[Site "Chess.com"]
[Date "2020.03.03"]
[Round "4"]
[White "kayrakamer"]
[Black "HajiyevKanan"]
[Result "1-0"]
[WhiteElo "2600"]
[BlackElo "2364"]
[TimeControl "180+1"]
[EndTime "13:40:00 PST"]
[Termination "kayrakamer won by resignation"]

1. Nf3 {[%clk 0:03:00.5]} 1... c6 {[%clk 0:00:47.3]} 2. d4 {[%clk 0:02:57.9]}
2... d5 {[%clk 0:00:48.2]} 3. c4 {[%clk 0:02:57.1]} 3... Nf6 {[%clk 0:00:48.6]}
4. Nc3 {[%clk 0:02:57.7]} 4... Ne4 {[%clk 0:00:48.4]} 5. Qb3 {[%clk 0:02:47]}
5... Nxc3 {[%clk 0:00:48.4]} 6. bxc3 {[%clk 0:02:46.8]} 6... g6 {[%clk
0:00:48.8]} 7. cxd5 {[%clk 0:02:38.9]} 7... cxd5 {[%clk 0:00:49.7]} 8. Bf4
{[%clk 0:02:36.8]} 8... Nc6 {[%clk 0:00:48.6]} 9. e3 {[%clk 0:02:36.6]} 9... Bg7
{[%clk 0:00:48.4]} 10. h3 {[%clk 0:02:34.9]} 10... O-O {[%clk 0:00:48.4]} 11.
Be2 {[%clk 0:02:33.1]} 11... Na5 {[%clk 0:00:45.7]} 12. Qb4 {[%clk 0:02:26.1]}
12... b6 {[%clk 0:00:42.1]} 13. O-O {[%clk 0:02:25.6]} 13... Bf5 {[%clk
0:00:41.4]} 14. Rfc1 {[%clk 0:02:25.1]} 14... Rc8 {[%clk 0:00:41.1]} 15. Nd2
{[%clk 0:02:21.5]} 15... Be6 {[%clk 0:00:36.1]} 16. Ba6 {[%clk 0:02:14.2]} 16...
Rc6 {[%clk 0:00:26.4]} 17. Bb5 {[%clk 0:02:11.8]} 17... Rc8 {[%clk 0:00:26.3]}
18. a4 {[%clk 0:02:05.7]} 18... f6 {[%clk 0:00:17.7]} 19. c4 {[%clk 0:02:02.1]}
19... dxc4 {[%clk 0:00:17.2]} 20. Nxc4 {[%clk 0:02:02.3]} 20... Bxc4 {[%clk
0:00:16.9]} 21. Bxc4+ {[%clk 0:02:02.8]} 21... Nxc4 {[%clk 0:00:12.2]} 22. Rxc4
{[%clk 0:02:02.2]} 22... Qd7 {[%clk 0:00:10.3]} 23. Rac1 {[%clk 0:02:00.7]}
23... e5 {[%clk 0:00:07.2]} 24. dxe5 {[%clk 0:01:53.8]} 24... fxe5 {[%clk
0:00:08.1]} 25. Bg3 {[%clk 0:01:53.6]} 25... Rxc4 {[%clk 0:00:04.4]} 26. Qxc4+
{[%clk 0:01:53.3]} 26... Qf7 {[%clk 0:00:05.1]} 27. Qe4 {[%clk 0:01:47.9]} 27...
Qe7 {[%clk 0:00:03.3]} 28. Rc6 {[%clk 0:01:42.2]} 28... Qd7 {[%clk 0:00:02.8]}
29. Qc4+ {[%clk 0:01:41.9]} 29... Qf7 {[%clk 0:00:01.8]} 30. Qc2 {[%clk
0:01:40.4]} 30... Qd7 {[%clk 0:00:01.8]} 31. Rc7 {[%clk 0:01:39.9]} 31... Qe6
{[%clk 0:00:01.9]} 32. Rxa7 {[%clk 0:01:39]} 32... Rf7 {[%clk 0:00:02.5]} 33.
Ra6 {[%clk 0:01:35.4]} 33... Bf8 {[%clk 0:00:02.9]} 34. a5 {[%clk 0:01:34.4]}
34... Rd7 {[%clk 0:00:03.3]} 35. Rxb6 {[%clk 0:01:32]} 35... Qd5 {[%clk
0:00:04.2]} 36. Qb3 {[%clk 0:01:31.4]} 36... Bc5 {[%clk 0:00:05]} 37. Qxd5+
{[%clk 0:01:29.9]} 37... Rxd5 {[%clk 0:00:05.9]} 38. Rb5 {[%clk 0:01:30.5]}
38... e4 {[%clk 0:00:06.1]} 39. a6 {[%clk 0:01:29.6]} 39... Rd1+ {[%clk
0:00:06.3]} 40. Kh2 {[%clk 0:01:29.8]} 40... Ba7 {[%clk 0:00:06.8]} 41. Rb7
{[%clk 0:01:29.4]} 41... Bc5 {[%clk 0:00:07.3]} 42. a7 {[%clk 0:01:29.1]} 42...
Ra1 {[%clk 0:00:07.8]} 43. Rb8+ {[%clk 0:01:28.9]} 1-0

[Event "*** Titled Tuesday Blitz"]
[Site "Chess.com"]
[Date "2020.03.03"]
[Round "4"]
[White "MFguimaraes"]
[Black "NM2019"]
[Result "1-0"]
[WhiteElo "2403"]
[BlackElo "2032"]
[TimeControl "180+1"]
[EndTime "13:40:00 PST"]
[Termination "MFguimaraes won by resignation"]

1. e4 {[%clk 0:02:59.1]} 1... c5 {[%clk 0:02:59.1]} 2. Nf3 {[%clk 0:02:58.9]}
2... d6 {[%clk 0:02:58.7]} 3. d4 {[%clk 0:02:58]} 3... cxd4 {[%clk 0:02:59.3]}
4. Nxd4 {[%clk 0:02:58.6]} 4... Nf6 {[%clk 0:02:59.8]} 5. Nc3 {[%clk 0:02:59]}
5... a6 {[%clk 0:03:00.4]} 6. g3 {[%clk 0:02:59.5]} 6... e5 {[%clk 0:03:00.7]}
7. Nde2 {[%clk 0:02:59.2]} 7... Be6 {[%clk 0:03:01.2]} 8. Bg2 {[%clk 0:02:59.4]}
8... Be7 {[%clk 0:03:01.5]} 9. O-O {[%clk 0:02:59.6]} 9... Nbd7 {[%clk
0:03:02.2]} 10. a4 {[%clk 0:02:58.7]} 10... Qc7 {[%clk 0:03:01.9]} 11. a5 {[%clk
0:02:58.9]} 11... O-O {[%clk 0:03:00.7]} 12. h3 {[%clk 0:02:58.1]} 12... Rac8
{[%clk 0:02:59.6]} 13. Be3 {[%clk 0:02:57.6]} 13... Rfd8 {[%clk 0:02:46.5]} 14.
Qd2 {[%clk 0:02:56.9]} 14... Nc5 {[%clk 0:02:44.6]} 15. g4 {[%clk 0:02:35.2]}
15... Qc6 {[%clk 0:02:44.7]} 16. Ng3 {[%clk 0:02:26.6]} 16... g6 {[%clk
0:02:43.5]} 17. Nd5 {[%clk 0:02:18.4]} 17... Bxd5 {[%clk 0:02:34.1]} 18. exd5
{[%clk 0:02:17.8]} 18... Qc7 {[%clk 0:02:28.4]} 19. g5 {[%clk 0:02:13.5]} 19...
Ne8 {[%clk 0:02:27.1]} 20. Rfc1 {[%clk 0:01:32]} 20... Ng7 {[%clk 0:02:23.3]}
21. h4 {[%clk 0:01:29]} 21... Nf5 {[%clk 0:02:21.5]} 22. Nxf5 {[%clk 0:01:28.3]}
22... gxf5 {[%clk 0:02:20.7]} 23. f4 {[%clk 0:01:23.2]} 23... Nd7 {[%clk
0:02:10.5]} 24. c4 {[%clk 0:01:17.2]} 24... Nc5 {[%clk 0:02:08.9]} 25. Ra3
{[%clk 0:01:14.3]} 25... f6 {[%clk 0:01:54.2]} 26. Kh2 {[%clk 0:01:12]} 26... e4
{[%clk 0:01:48.5]} 27. Bh3 {[%clk 0:01:07.9]} 27... Qd7 {[%clk 0:01:46.1]} 28.
Bd4 {[%clk 0:01:00]} 28... fxg5 {[%clk 0:01:38.2]} 29. hxg5 {[%clk 0:00:58.6]}
29... Nd3 {[%clk 0:01:35.6]} 30. Rg1 {[%clk 0:00:53.1]} 30... Rxc4 {[%clk
0:01:26.9]} 31. g6 {[%clk 0:00:52]} 31... Rxd4 {[%clk 0:01:22.3]} 32. gxh7+
{[%clk 0:00:46.3]} 32... Kh8 {[%clk 0:01:22.4]} 33. Qg2 {[%clk 0:00:44.2]} 33...
Bg5 {[%clk 0:01:05.2]} 34. Qxg5 {[%clk 0:00:41]} 34... Qf7 {[%clk 0:00:56.3]}
35. Qxd8+ {[%clk 0:00:40.2]} 35... Kxh7 {[%clk 0:00:54]} 36. Qh4+ {[%clk
0:00:37.7]} 1-0

[Event "*** Titled Tuesday Blitz"]
[Site "Chess.com"]
[Date "2020.03.03"]
[Round "4"]
[White "Lovkov_Roman"]
[Black "ChadBiryani"]
[Result "1-0"]
[WhiteElo "2689"]
[BlackElo "2448"]
[TimeControl "180+1"]
[EndTime "13:40:02 PST"]
[Termination "Lovkov_Roman won by resignation"]

1. e4 {[%clk 0:03:00.9]} 1... c5 {[%clk 0:02:59.6]} 2. c3 {[%clk 0:03:00.1]}
2... d5 {[%clk 0:02:59.3]} 3. exd5 {[%clk 0:02:59.8]} 3... Qxd5 {[%clk
0:02:50.8]} 4. Nf3 {[%clk 0:02:59.7]} 4... Nf6 {[%clk 0:02:50.3]} 5. d4 {[%clk
0:02:59.1]} 5... cxd4 {[%clk 0:02:48.9]} 6. cxd4 {[%clk 0:02:57.6]} 6... e6
{[%clk 0:02:49.1]} 7. Nc3 {[%clk 0:02:57.7]} 7... Bb4 {[%clk 0:02:48.1]} 8. Bd3
{[%clk 0:02:54.1]} 8... Nc6 {[%clk 0:02:44.7]} 9. O-O {[%clk 0:02:44.9]} 9...
Bxc3 {[%clk 0:02:44.9]} 10. bxc3 {[%clk 0:02:45.8]} 10... O-O {[%clk 0:02:45.3]}
11. Qc2 {[%clk 0:02:27.8]} 11... b6 {[%clk 0:02:38]} 12. Bg5 {[%clk 0:02:26.4]}
12... h6 {[%clk 0:02:31.5]} 13. Bxf6 {[%clk 0:02:20.5]} 13... gxf6 {[%clk
0:02:32.4]} 14. Be4 {[%clk 0:02:20.9]} 14... Qd6 {[%clk 0:02:28.5]} 15. Rad1
{[%clk 0:02:08]} 15... Bb7 {[%clk 0:02:09.3]} 16. Rfe1 {[%clk 0:01:57.5]} 16...
Rac8 {[%clk 0:02:02.1]} 17. Qc1 {[%clk 0:01:40.8]} 17... Kg7 {[%clk 0:01:46.1]}
18. d5 {[%clk 0:01:40.8]} 18... Na5 {[%clk 0:01:37.8]} 19. dxe6 {[%clk
0:01:36.4]} 19... Qc5 {[%clk 0:01:21.8]} 20. Nd4 {[%clk 0:01:12.8]} 20... Bxe4
{[%clk 0:01:12]} 21. Rxe4 {[%clk 0:01:13.7]} 21... f5 {[%clk 0:01:10.1]} 22. Re3
{[%clk 0:01:09.2]} 22... f4 {[%clk 0:00:48.2]} 23. Rf3 {[%clk 0:01:09.2]} 23...
Rfe8 {[%clk 0:00:31.3]} 24. Qxf4 {[%clk 0:01:06.2]} 24... Qh5 {[%clk 0:00:15.8]}
25. Qf6+ {[%clk 0:00:50.5]} 25... Kh7 {[%clk 0:00:11.7]} 26. exf7 {[%clk
0:00:44.2]} 26... Re5 {[%clk 0:00:03.7]} 27. f8=Q {[%clk 0:00:34.8]} 1-0

[Event "*** Titled Tuesday Blitz"]
[Site "Chess.com"]
[Date "2020.03.03"]
[Round "4"]
[White "vpantev"]
[Black "gena217"]
[Result "0-1"]
[WhiteElo "2630"]
[BlackElo "3013"]
[TimeControl "180+1"]
[EndTime "13:40:03 PST"]
[Termination "gena217 won by resignation"]

1. d4 {[%clk 0:02:55.5]} 1... f5 {[%clk 0:02:59.3]} 2. g3 {[%clk 0:02:54.8]}
2... Nf6 {[%clk 0:02:59]} 3. Bg2 {[%clk 0:02:55.2]} 3... e6 {[%clk 0:02:57.3]}
4. Nh3 {[%clk 0:02:55.3]} 4... d6 {[%clk 0:02:56.7]} 5. O-O {[%clk 0:02:55.2]}
5... Ke7 {[%clk 0:02:56.3]} 6. Nf4 {[%clk 0:02:54.3]} 6... c6 {[%clk 0:02:46.6]}
7. b3 {[%clk 0:02:52.7]} 7... Kf7 {[%clk 0:02:36.3]} 8. Bb2 {[%clk 0:02:51.2]}
8... g5 {[%clk 0:02:32.9]} 9. Nd3 {[%clk 0:02:51]} 9... Bg7 {[%clk 0:02:31.8]}
10. Nd2 {[%clk 0:02:50.5]} 10... d5 {[%clk 0:02:26.4]} 11. Nf3 {[%clk
0:02:49.4]} 11... h6 {[%clk 0:02:24.4]} 12. c4 {[%clk 0:02:45.8]} 12... Rf8
{[%clk 0:02:22.8]} 13. Nfe5+ {[%clk 0:02:38.1]} 13... Kg8 {[%clk 0:02:22.5]} 14.
e3 {[%clk 0:02:38.1]} 14... Nbd7 {[%clk 0:02:17.1]} 15. h3 {[%clk 0:02:30.4]}
15... Nxe5 {[%clk 0:02:06.8]} 16. Nxe5 {[%clk 0:02:29.9]} 16... Nd7 {[%clk
0:02:06.9]} 17. Nxd7 {[%clk 0:02:29.2]} 17... Bxd7 {[%clk 0:02:06.8]} 18. f4
{[%clk 0:02:26.3]} 18... Kh7 {[%clk 0:02:04.9]} 19. Qd3 {[%clk 0:02:19.5]} 19...
Be8 {[%clk 0:01:52.8]} 20. b4 {[%clk 0:02:13.9]} 20... Qe7 {[%clk 0:01:44.6]}
21. c5 {[%clk 0:02:13.3]} 21... h5 {[%clk 0:01:41.3]} 22. fxg5 {[%clk
0:02:06.9]} 22... Qxg5 {[%clk 0:01:40.6]} 23. Kh2 {[%clk 0:02:05.7]} 23... h4
{[%clk 0:01:36.9]} 24. gxh4 {[%clk 0:02:04.8]} 24... Qxh4 {[%clk 0:01:37.8]} 25.
Qe2 {[%clk 0:01:52.4]} 25... Rg8 {[%clk 0:01:27.1]} 26. Qf2 {[%clk 0:01:52.1]}
26... Qh6 {[%clk 0:01:26.7]} 27. Bc1 {[%clk 0:01:46.7]} 27... Qf6 {[%clk
0:01:19.9]} 28. Bd2 {[%clk 0:01:42.5]} 28... Bh6 {[%clk 0:01:17]} 29. Rg1 {[%clk
0:01:41.2]} 29... Bd7 {[%clk 0:01:14.2]} 30. Bf3 {[%clk 0:01:39.5]} 30... e5
{[%clk 0:01:14.2]} 31. dxe5 {[%clk 0:01:27.1]} 31... Qxe5+ {[%clk 0:01:15.1]}
32. Kh1 {[%clk 0:01:26.9]} 32... Qf6 {[%clk 0:01:05.7]} 33. Rxg8 {[%clk
0:01:24.7]} 33... Rxg8 {[%clk 0:01:03.8]} 34. Rg1 {[%clk 0:01:24.2]} 34... Rxg1+
{[%clk 0:00:56.5]} 35. Qxg1 {[%clk 0:01:23.9]} 35... Be6 {[%clk 0:00:57.2]} 36.
Bh5 {[%clk 0:01:08.9]} 36... d4 {[%clk 0:00:54.5]} 37. Qg3 {[%clk 0:01:01.6]}
37... dxe3 {[%clk 0:00:43.5]} 38. Bxe3 {[%clk 0:01:01]} 38... f4 {[%clk
0:00:41]} 39. Bxf4 {[%clk 0:00:46.2]} 39... Bxf4 {[%clk 0:00:41.9]} 40. Qd3+
{[%clk 0:00:46]} 40... Qf5 {[%clk 0:00:39.9]} 41. Qxf5+ {[%clk 0:00:43.2]} 41...
Bxf5 {[%clk 0:00:40.8]} 42. Kg2 {[%clk 0:00:43.3]} 42... Bd2 {[%clk 0:00:39.6]}
43. a3 {[%clk 0:00:43.2]} 43... Bc1 {[%clk 0:00:38.9]} 44. Bf3 {[%clk
0:00:43.7]} 44... Bxa3 {[%clk 0:00:37.8]} 45. b5 {[%clk 0:00:44.1]} 45... cxb5
{[%clk 0:00:36.7]} 46. Bxb7 {[%clk 0:00:43.7]} 46... Bxc5 {[%clk 0:00:36.3]} 0-1

[Event "*** Titled Tuesday Blitz"]
[Site "Chess.com"]
[Date "2020.03.03"]
[Round "4"]
[White "Chessalary"]
[Black "Misi_95"]
[Result "1-0"]
[WhiteElo "2289"]
[BlackElo "2639"]
[TimeControl "180+1"]
[EndTime "13:40:03 PST"]
[Termination "Chessalary won on time"]

1. e4 {[%clk 0:03:00.9]} 1... c5 {[%clk 0:02:58.4]} 2. Nf3 {[%clk 0:02:58.5]}
2... Nc6 {[%clk 0:02:57]} 3. d4 {[%clk 0:02:59.4]} 3... cxd4 {[%clk 0:02:57]} 4.
Nxd4 {[%clk 0:02:54.2]} 4... Nf6 {[%clk 0:02:48.1]} 5. f3 {[%clk 0:02:34.5]}
5... e5 {[%clk 0:02:42.7]} 6. Nb5 {[%clk 0:02:32.3]} 6... Bc5 {[%clk 0:01:58.1]}
7. Nd6+ {[%clk 0:02:28.5]} 7... Kf8 {[%clk 0:01:48.6]} 8. Bg5 {[%clk 0:02:27.8]}
8... Qb6 {[%clk 0:01:43.9]} 9. Nc4 {[%clk 0:02:23.8]} 9... Qc7 {[%clk 0:01:38]}
10. Nc3 {[%clk 0:02:21]} 10... Ne7 {[%clk 0:01:33.6]} 11. Qd3 {[%clk 0:02:16.5]}
11... d6 {[%clk 0:01:27]} 12. Ne3 {[%clk 0:02:16.6]} 12... Be6 {[%clk
0:01:26.3]} 13. Bxf6 {[%clk 0:02:11.3]} 13... gxf6 {[%clk 0:01:25.8]} 14. O-O-O
{[%clk 0:02:12.2]} 14... Rc8 {[%clk 0:01:21.6]} 15. Kb1 {[%clk 0:02:11.3]} 15...
a6 {[%clk 0:01:21.3]} 16. Ncd5 {[%clk 0:02:01.9]} 16... Bxd5 {[%clk 0:01:17.6]}
17. Nxd5 {[%clk 0:02:02.8]} 17... Nxd5 {[%clk 0:01:17.3]} 18. Qxd5 {[%clk
0:02:03.7]} 18... b5 {[%clk 0:01:15.5]} 19. h4 {[%clk 0:01:56.2]} 19... Ke7
{[%clk 0:01:14.7]} 20. g4 {[%clk 0:01:54.1]} 20... h6 {[%clk 0:01:13.5]} 21. Bh3
{[%clk 0:01:44.9]} 21... Rb8 {[%clk 0:00:52.4]} 22. f4 {[%clk 0:01:45.3]} 22...
exf4 {[%clk 0:00:50.7]} 23. Qf5 {[%clk 0:01:46.2]} 23... Be3 {[%clk 0:00:45.9]}
24. g5 {[%clk 0:01:44.1]} 24... hxg5 {[%clk 0:00:29.4]} 25. hxg5 {[%clk
0:01:45]} 25... fxg5 {[%clk 0:00:15.1]} 26. Qxg5+ {[%clk 0:01:45.5]} 26... Kf8
{[%clk 0:00:15.7]} 27. Qf6 {[%clk 0:01:40.7]} 27... Rg8 {[%clk 0:00:15.2]} 28.
Be6 {[%clk 0:01:35.8]} 28... Qe7 {[%clk 0:00:14.1]} 29. Qh6+ {[%clk 0:01:35.4]}
29... Ke8 {[%clk 0:00:14]} 30. Bd5 {[%clk 0:01:30.2]} 30... Kd7 {[%clk
0:00:12.9]} 31. Bxf7 {[%clk 0:01:30.2]} 31... Rh8 {[%clk 0:00:08.7]} 32. Qg6
{[%clk 0:01:30.5]} 32... Rbf8 {[%clk 0:00:05.3]} 33. Rxh8 {[%clk 0:01:26.4]}
33... Rxh8 {[%clk 0:00:05.1]} 34. e5 {[%clk 0:01:26.9]} 34... Qxe5 {[%clk
0:00:03.4]} 35. Qg2 {[%clk 0:01:17.2]} 35... Ke7 {[%clk 0:00:01.7]} 36. Bd5
{[%clk 0:01:17.4]} 36... Rf8 {[%clk 0:00:01.3]} 37. Bb3 {[%clk 0:01:12.4]} 1-0

[Event "*** Titled Tuesday Blitz"]
[Site "Chess.com"]
[Date "2020.03.03"]
[Round "4"]
[White "ZEN-22"]
[Black "Dhaydon19"]
[Result "1-0"]
[WhiteElo "2414"]
[BlackElo "2711"]
[TimeControl "180+1"]
[EndTime "13:40:03 PST"]
[Termination "ZEN-22 won by checkmate"]

1. e3 {[%clk 0:03:00.9]} 1... c6 {[%clk 0:03:00.7]} 2. d4 {[%clk 0:02:58]} 2...
d5 {[%clk 0:03:01.6]} 3. c4 {[%clk 0:02:58.8]} 3... Nf6 {[%clk 0:03:02.4]} 4.
Nc3 {[%clk 0:02:59.1]} 4... e6 {[%clk 0:03:03.1]} 5. g4 {[%clk 0:02:59]} 5...
Bd6 {[%clk 0:03:03.8]} 6. g5 {[%clk 0:02:59.3]} 6... Nfd7 {[%clk 0:03:03.5]} 7.
h4 {[%clk 0:02:59.3]} 7... h6 {[%clk 0:03:03.1]} 8. g6 {[%clk 0:02:59.3]} 8...
fxg6 {[%clk 0:03:01.9]} 9. Bd3 {[%clk 0:02:59.7]} 9... Nf8 {[%clk 0:03:00.4]}
10. Qg4 {[%clk 0:02:55.4]} 10... Kf7 {[%clk 0:02:59.6]} 11. Nge2 {[%clk
0:02:43.1]} 11... Nbd7 {[%clk 0:02:58.4]} 12. Nf4 {[%clk 0:02:40.8]} 12... Bxf4
{[%clk 0:02:58.3]} 13. Qxf4+ {[%clk 0:02:40.2]} 13... Qf6 {[%clk 0:02:57.4]} 14.
Qc7 {[%clk 0:02:39.1]} 14... Qe7 {[%clk 0:02:53.4]} 15. Rg1 {[%clk 0:02:38.1]}
15... Qxh4 {[%clk 0:02:39.3]} 16. Bd2 {[%clk 0:02:28.6]} 16... Qe7 {[%clk
0:02:38.6]} 17. O-O-O {[%clk 0:02:20.3]} 17... Nf6 {[%clk 0:02:38.4]} 18. Qg3
{[%clk 0:02:20.7]} 18... g5 {[%clk 0:02:37.4]} 19. f4 {[%clk 0:02:19.7]} 19...
g4 {[%clk 0:02:36.2]} 20. e4 {[%clk 0:02:11.4]} 20... dxe4 {[%clk 0:02:35.6]}
21. Nxe4 {[%clk 0:02:09.3]} 21... Nxe4 {[%clk 0:02:35.2]} 22. Bxe4 {[%clk
0:02:10.2]} 22... h5 {[%clk 0:02:35.4]} 23. Rh1 {[%clk 0:02:09.1]} 23... Bd7
{[%clk 0:02:30.7]} 24. Rdg1 {[%clk 0:02:07.2]} 24... g6 {[%clk 0:02:25]} 25. Bc3
{[%clk 0:02:03.7]} 25... Rg8 {[%clk 0:02:24.6]} 26. Re1 {[%clk 0:01:59.1]} 26...
Qd6 {[%clk 0:02:20.9]} 27. Kb1 {[%clk 0:01:56.6]} 27... Re8 {[%clk 0:02:16.4]}
28. Rhf1 {[%clk 0:01:51.3]} 28... Nh7 {[%clk 0:02:12.9]} 29. Qd3 {[%clk
0:01:48.5]} 29... Nf6 {[%clk 0:02:11.5]} 30. Bg2 {[%clk 0:01:47.3]} 30... b5
{[%clk 0:02:10.2]} 31. cxb5 {[%clk 0:01:43.4]} 31... cxb5 {[%clk 0:02:09.8]} 32.
a3 {[%clk 0:01:43.8]} 32... Bc6 {[%clk 0:02:02.8]} 33. Bb4 {[%clk 0:01:42.2]}
33... Qd7 {[%clk 0:02:02.1]} 34. d5 {[%clk 0:01:40.1]} 34... exd5 {[%clk
0:01:58]} 35. Rxe8 {[%clk 0:01:37]} 35... Rxe8 {[%clk 0:01:57.5]} 36. f5 {[%clk
0:01:37.2]} 36... g5 {[%clk 0:01:54]} 37. Bd2 {[%clk 0:01:36.3]} 37... Ne4
{[%clk 0:01:51.4]} 38. Be3 {[%clk 0:01:31.1]} 38... h4 {[%clk 0:01:33]} 39. Rc1
{[%clk 0:01:21]} 39... h3 {[%clk 0:01:30.6]} 40. Bh1 {[%clk 0:01:19.2]} 40... g3
{[%clk 0:01:28.7]} 41. Bf3 {[%clk 0:01:17.7]} 41... Kf6 {[%clk 0:01:22.4]} 42.
Bg4 {[%clk 0:01:15.2]} 42... h2 {[%clk 0:01:06.2]} 43. Qd4+ {[%clk 0:01:14.7]}
43... Re5 {[%clk 0:01:00.5]} 44. Bf3 {[%clk 0:01:09.5]} 44... Kxf5 {[%clk
0:00:55.5]} 45. Bxe4+ {[%clk 0:01:07]} 45... Rxe4 {[%clk 0:00:45.5]} 46. Rf1+
{[%clk 0:01:06.7]} 46... Kg6 {[%clk 0:00:34.9]} 47. Qf6+ {[%clk 0:01:02.3]}
47... Kh5 {[%clk 0:00:34.7]} 48. Qxg5# {[%clk 0:01:01.4]} 1-0

[Event "*** Titled Tuesday Blitz"]
[Site "Chess.com"]
[Date "2020.03.03"]
[Round "4"]
[White "Region_07"]
[Black "Maikrosoft63"]
[Result "0-1"]
[WhiteElo "2401"]
[BlackElo "2577"]
[TimeControl "180+1"]
[EndTime "13:40:07 PST"]
[Termination "Maikrosoft63 won by resignation"]

1. d4 {[%clk 0:03:00.9]} 1... Nf6 {[%clk 0:02:59.2]} 2. Bg5 {[%clk 0:02:59.9]}
2... e6 {[%clk 0:02:58.8]} 3. Nf3 {[%clk 0:02:59]} 3... h6 {[%clk 0:02:58.3]} 4.
Bh4 {[%clk 0:02:58.4]} 4... d6 {[%clk 0:02:51.9]} 5. e3 {[%clk 0:02:57.9]} 5...
g5 {[%clk 0:02:50.2]} 6. Bg3 {[%clk 0:02:57.3]} 6... Nh5 {[%clk 0:02:50.7]} 7.
c4 {[%clk 0:02:45.3]} 7... Bg7 {[%clk 0:02:50]} 8. Nc3 {[%clk 0:02:44.5]} 8...
b6 {[%clk 0:02:38]} 9. Be2 {[%clk 0:02:37.3]} 9... Nxg3 {[%clk 0:02:36.4]} 10.
hxg3 {[%clk 0:02:37]} 10... Bb7 {[%clk 0:02:36.9]} 11. Qc2 {[%clk 0:02:36.1]}
11... Nd7 {[%clk 0:02:36.5]} 12. O-O-O {[%clk 0:02:29.9]} 12... Qe7 {[%clk
0:02:28.4]} 13. g4 {[%clk 0:02:29.5]} 13... O-O-O {[%clk 0:02:27.2]} 14. Bd3
{[%clk 0:02:29]} 14... Kb8 {[%clk 0:02:24.2]} 15. Be4 {[%clk 0:02:28.5]} 15...
c5 {[%clk 0:02:15.1]} 16. Bxb7 {[%clk 0:02:26.6]} 16... Kxb7 {[%clk 0:02:14.9]}
17. Qe4+ {[%clk 0:02:04.9]} 17... Kb8 {[%clk 0:02:13.1]} 18. Nb5 {[%clk
0:01:29.6]} 18... a6 {[%clk 0:02:06.2]} 19. Nc3 {[%clk 0:01:29.2]} 19... Rc8
{[%clk 0:02:02.1]} 20. Kb1 {[%clk 0:01:28.4]} 20... Rhd8 {[%clk 0:02:00.4]} 21.
Rc1 {[%clk 0:01:23.5]} 21... Nf6 {[%clk 0:01:59]} 22. Qc2 {[%clk 0:01:12.4]}
22... Nxg4 {[%clk 0:01:59.3]} 23. Qa4 {[%clk 0:01:05.6]} 23... Kb7 {[%clk
0:01:56.3]} 24. Rc2 {[%clk 0:01:05.1]} 24... Qc7 {[%clk 0:01:43.9]} 25. dxc5
{[%clk 0:00:53.4]} 25... dxc5 {[%clk 0:01:37.5]} 26. Qb3 {[%clk 0:00:43.1]}
26... Rd7 {[%clk 0:01:28.4]} 27. Ne4 {[%clk 0:00:29.1]} 27... Rcd8 {[%clk
0:01:27.2]} 28. Rhc1 {[%clk 0:00:27.4]} 28... Rd1 {[%clk 0:01:21.1]} 29. a4
{[%clk 0:00:27]} 29... f5 {[%clk 0:01:14.3]} 30. Nc3 {[%clk 0:00:20.4]} 30...
Rxc1+ {[%clk 0:01:09.8]} 31. Rxc1 {[%clk 0:00:19.9]} 31... Nxf2 {[%clk
0:01:08.3]} 32. a5 {[%clk 0:00:19.1]} 32... Nd3 {[%clk 0:01:04.6]} 33. Rd1
{[%clk 0:00:15.8]} 33... Nb4 {[%clk 0:01:03.4]} 34. Rc1 {[%clk 0:00:12.1]} 34...
Rd3 {[%clk 0:00:59.8]} 35. axb6 {[%clk 0:00:09.1]} 35... Qxb6 {[%clk 0:00:59.3]}
36. Ne1 {[%clk 0:00:09.6]} 36... Rxe3 {[%clk 0:00:57.9]} 37. Na4 {[%clk
0:00:08.9]} 37... Rxb3 {[%clk 0:00:56.5]} 38. Nxb6 {[%clk 0:00:08.2]} 38...
Rxb2+ {[%clk 0:00:56.7]} 0-1

[Event "*** Titled Tuesday Blitz"]
[Site "Chess.com"]
[Date "2020.03.03"]
[Round "4"]
[White "bascheyaro"]
[Black "kingofthenil"]
[Result "1/2-1/2"]
[WhiteElo "2734"]
[BlackElo "2574"]
[TimeControl "180+1"]
[EndTime "13:40:08 PST"]
[Termination "Game drawn by agreement"]

1. d4 {[%clk 0:03:00.9]} 1... Nf6 {[%clk 0:02:59.5]} 2. Nf3 {[%clk 0:03:01.3]}
2... c5 {[%clk 0:02:53.1]} 3. dxc5 {[%clk 0:03:01.1]} 3... e6 {[%clk 0:02:50.5]}
4. Bf4 {[%clk 0:03:01.3]} 4... Bxc5 {[%clk 0:02:49.2]} 5. e3 {[%clk 0:03:01.8]}
5... d5 {[%clk 0:02:48.4]} 6. c4 {[%clk 0:03:00.6]} 6... O-O {[%clk 0:02:38.9]}
7. a3 {[%clk 0:02:59.7]} 7... Nc6 {[%clk 0:02:35.5]} 8. Nc3 {[%clk 0:02:58.6]}
8... Re8 {[%clk 0:02:25.2]} 9. cxd5 {[%clk 0:02:52]} 9... exd5 {[%clk
0:02:21.5]} 10. Be2 {[%clk 0:02:52]} 10... Bg4 {[%clk 0:02:18.7]} 11. O-O {[%clk
0:02:49.9]} 11... Rc8 {[%clk 0:02:19.2]} 12. b4 {[%clk 0:02:44.6]} 12... Bd6
{[%clk 0:02:18.4]} 13. Bxd6 {[%clk 0:02:43.7]} 13... Qxd6 {[%clk 0:02:19.3]} 14.
Nb5 {[%clk 0:02:44.1]} 14... Qb8 {[%clk 0:02:09.8]} 15. h3 {[%clk 0:02:43.1]}
15... Bxf3 {[%clk 0:01:46.3]} 16. Bxf3 {[%clk 0:02:44]} 16... Qe5 {[%clk
0:01:46.9]} 17. Rc1 {[%clk 0:02:38.8]} 17... a6 {[%clk 0:01:35.2]} 18. Nc3
{[%clk 0:02:38.6]} 18... Nxb4 {[%clk 0:01:26.3]} 19. axb4 {[%clk 0:02:38.1]}
19... Rxc3 {[%clk 0:01:25.4]} 20. Rxc3 {[%clk 0:02:37]} 20... Qxc3 {[%clk
0:01:26.3]} 21. b5 {[%clk 0:02:35.5]} 21... Rd8 {[%clk 0:01:05.2]} 22. bxa6
{[%clk 0:02:35.1]} 22... bxa6 {[%clk 0:01:06.1]} 23. Qa4 {[%clk 0:02:34.7]}
23... a5 {[%clk 0:01:04.8]} 24. Ra1 {[%clk 0:02:34.7]} 24... Ra8 {[%clk
0:00:57.3]} 25. Rd1 {[%clk 0:02:33.8]} 25... Rd8 {[%clk 0:00:51.4]} 26. Bxd5
{[%clk 0:02:16.3]} 26... Nxd5 {[%clk 0:00:47.3]} 27. Rxd5 {[%clk 0:02:12.7]}
27... Qc1+ {[%clk 0:00:38.9]} 28. Kh2 {[%clk 0:02:12.8]} 28... Qc7+ {[%clk
0:00:39.4]} 29. f4 {[%clk 0:02:11.5]} 29... Ra8 {[%clk 0:00:38.3]} 30. Rd7
{[%clk 0:02:09.6]} 30... Qc5 {[%clk 0:00:35.2]} 31. Qe4 {[%clk 0:01:55.3]} 31...
Rf8 {[%clk 0:00:34.2]} 32. Rd5 {[%clk 0:01:52.4]} 32... Qb4 {[%clk 0:00:33.1]}
33. Rd4 {[%clk 0:01:52.5]} 33... Qb6 {[%clk 0:00:31.9]} 34. Qe5 {[%clk
0:01:48.7]} 34... h6 {[%clk 0:00:31.7]} 35. f5 {[%clk 0:01:47.2]} 35... Qb8
{[%clk 0:00:29.9]} 36. Rd6 {[%clk 0:01:44.4]} 36... Rd8 {[%clk 0:00:23.3]} 37.
Rxd8+ {[%clk 0:01:42]} 37... Qxd8 {[%clk 0:00:24.2]} 38. Qf4 {[%clk 0:01:34.8]}
38... Qf6 {[%clk 0:00:19.4]} 39. e4 {[%clk 0:01:34.4]} 39... Qd4 {[%clk
0:00:18.4]} 40. Qb8+ {[%clk 0:01:26.5]} 40... Kh7 {[%clk 0:00:18.1]} 41. Qe8
{[%clk 0:01:26.6]} 41... f6 {[%clk 0:00:16]} 1/2-1/2